Cogmind - Beta 11.1 @@@ ROGUE MODE // 2022.10.22 @ 23:28:54 Player: Bokkiewokkie Result: Destroyed by L-31 Rogue with Katana Performance ------------- Evolutions (1) 500 Regions Visited (3) 600 Robots Destroyed (48) 240 Value Destroyed (1411) 1411 Prototype IDs (3) 60 Alien Tech Used (0) 0 Bonus (133) 133 TOTAL SCORE: 2944 Bonus ------- High Alert Combat Kills 133 Cogmind --------- Core Integrity 0/400 Matter 293/300 Energy 250/250 System Corruption 0% Temperature Cool (0) Movement Rolling (80) Location -9/Storage Parts ------- > --- POWER (1) -------- Ion Engine > --- PROPULSION (2) --- Wheel Wheel > --- UTILITY (4) ------ Medium Storage Unit Structural Scanner Improved Signal Interpreter Core Shielding > --- WEAPON (2) ------- (None) > --- INVENTORY (10) --- Light Armor Plating High-powered Tractor Beam Rocket Launcher Peak State ------------ > --- POWER ------------ Improved Ion Engine > --- PROPULSION ------- Carbon-fiber Leg Carbon-fiber Leg > --- UTILITY ---------- Improved Heat Sink Small Storage Unit Large Matter Pod Improved Signal Interpreter > --- WEAPON ----------- Improved Medium Laser Heavy Particle Cannon > --- INVENTORY -------- Light Ion Engine Light Ion Engine Wheel Wheel Improved Signal Interpreter Light Assault Rifle Heavy Assault Rifle Grenade Launcher [Rating: 23] Favorites ----------- Power Improved Ion Engine Engine Improved Ion Engine Propulsion Wheel Leg Carbon-fiber Leg Wheel Wheel Utility Improved Signal Interpreter Device Structural Scanner Storage Small Storage Unit Processor Improved Signal Interpreter Protection Light Armor Plating Weapon Heavy Assault Rifle Energy Gun Improved Medium Laser Energy Cannon Heavy Particle Cannon Ballistic Gun Heavy Assault Rifle Launcher Grenade Launcher Build | -11 -10 -9 -9 ------- Run | Scr Mat Mat Sto Slots Evolved 2 | . . 2 . Power . | . . . . Propulsion . | . . . . Utility 2 | . . 2 . Weapon . | . . . . Parts Attached 61 | 6 6 36 13 Power 7 | 1 1 4 1 Engine 7 | 1 1 4 1 Core . | . . . . Reactor . | . . . . Propulsion 16 | 2 . 11 3 Treads . | . . . . Leg 4 | . . 4 . Wheel 12 | 2 . 7 3 Hover . | . . . . Flight . | . . . . Utility 14 | 1 1 10 2 Device 6 | . 1 5 . Storage 3 | 1 . 1 1 Processor 3 | . . 3 . Hackware . | . . . . Protection 2 | . . 1 1 Artifact . | . . . . Weapon 24 | 2 4 11 7 Energy Gun 4 | 1 2 1 . Energy Cannon 5 | . . 2 3 Ballistic Gun 10 | 1 . 6 3 Ballistic Cannon . | . . . . Launcher 5 | . 2 2 1 Special Weapon . | . . . . Impact Weapon . | . . . . Slashing Weapon . | . . . . Piercing Weapon . | . . . . Special Melee Weapon . | . . . . Unidentified Prototypes 1 | . . 1 . Parts Lost 17 | . . 9 8 Power 3 | . . 2 1 Propulsion 6 | . . 4 2 Utility 3 | . . 2 1 Weapon 5 | . . 1 4 Highest Loss Streak 5 | . . 5 4 To Critical Strikes . | . . . . Average Slot Usage (%) 97 | . 92 97 97 Engine 10 | . 14 10 8 Leg 6 | . . 10 . Wheel 15 | . 28 10 22 Device 10 | . 7 10 11 Storage 15 | . 14 18 10 Processor 10 | . . 11 11 Protection 5 | . . 2 11 Energy Gun 2 | . 7 3 . Energy Cannon 2 | . . 3 1 Ballistic Gun 14 | . 14 12 19 Launcher 2 | . 7 2 1 Naked Turns . | . . . . Heaviest Build 30 | 10 15 25 30 Greatest Support 30 | 20 20 30 22 Greatest Overweight (x) 2 | . . 2 1 Average Overweight (x) . | . . . . Largest Inventory Capacity 10 | 8 8 8 10 Average Capacity 8 | 6 8 7 9 Most Carried 8 | 1 5 8 6 Average Carried 5 | . 3 6 4 Final Capacity 10 | 8 8 5 10 Final Carried 5 | 1 5 5 3 Class Distribution -------------------- 91% | Mutant 8% | Scavenger-Mutant Dominant Class ---------------- Mutant | -10/Materials Mutant | -9/Materials Mutant | -9/Storage Resources | -11 -10 -9 -9 ----------- Run | Scr Mat Mat Sto Matter Collected 1336 | 212 60 583 481 Remotely 39 | . . 39 . Salvage Created 1634 | . 60 864 710 Parts 103 | . 6 58 39 Haulers Intercepted 3 | . . 1 2 Recyclers Shooed 2 | . . . 2 Parts Field Recycled . | . . . . Retrieved Matter . | . . . . Parts Self-Destructed . | . . . . Prevented . | . . . . Kills | -11 -10 -9 -9 ------- Run | Scr Mat Mat Sto Combat Hostiles Destroyed 37 | . 2 21 14 Guns 25 | . 1 13 11 Cannons 7 | . . 6 1 AOE 4 | . 1 1 2 Classes Destroyed 8 | . 2 6 . Worker 3 | . . 2 1 Builder 1 | . . 1 . Hauler 3 | . . 1 2 Watcher 4 | . 1 2 1 Swarmer 7 | . . 7 . Grunt 18 | . 2 8 8 Duelist 1 | . . 1 . Sentry 11 | . . 5 6 Best Kill Streak 7 | . 2 7 7 Combat Bots Only 6 | . 2 6 4 Max Kills in Single Turn 3 | . 1 3 2 Gunslinging 1 | . . 1 . Exploded 2 | . 1 1 2 Melee . | . . . . Uniques/NPCs Destroyed . | . . . . Combat | -11 -10 -9 -9 -------- Run | Scr Mat Mat Sto Damage Taken 2346 | . 35 1410 901 Core 408 | . . 296 112 Absorbed by Shields . | . . . . Redirected to Shielding 12 | . . . 12 Core Remaining (%) 100 | 100 100 . . Volleys Fired 136 | . 13 65 58 Largest 2 | . 2 2 2 Hottest 131 | . 60 131 98 Shots Fired 239 | . 18 117 104 Gun 200 | . 15 91 94 Cannon 29 | . . 24 5 Launcher 10 | . 3 2 5 Special . | . . . . Kinetic 178 | . 11 73 94 Thermal 51 | . 4 42 5 Explosive 10 | . 3 2 5 Electromagnetic . | . . . . Robot Hit Streak 16 | . 2 16 11 Robot Miss Streak 5 | . 3 3 5 Penetration Max . | . . . . Secondary Targets 1 | . . 1 . Max Gunslinging Chain 1 | . . 1 . Shots Hit Robots 145 | . 7 78 60 Core Hits 75 | . 6 39 30 Critical Kills 1 | . . . 1 Critical Parts Destroyed . | . . . . Critical Strikes 2 | . . 1 1 Burn 1 | . . 1 . Destroy 1 | . . . 1 Melee Attacks . | . . . . Impact . | . . . . Slashing . | . . . . Piercing . | . . . . Sneak Attacks . | . . . . Combat Hostiles . | . . . . Follow-up Attacks . | . . . . Damage Inflicted 2926 | . 196 1466 1264 Guns 1815 | . 59 787 969 Cannons 475 | . . 425 50 Explosions 636 | . 137 254 245 Melee . | . . . . Ramming . | . . . . Kinetic 1596 | . 49 578 969 Thermal 694 | . 10 634 50 Explosive 636 | . 137 254 245 Electromagnetic . | . . . . Impact . | . . . . Slashing . | . . . . Piercing . | . . . . Highest Corruption . | . . . . Average Corruption . | . . . . Corruption Purged . | . . . . Corruption Blocked . | . . . . Overload Shots . | . . . . Overflow Damage 10 | . 10 . . Projectiles . | . . . . Explosions 10 | . 10 . . Melee . | . . . . Knockbacks . | . . . . Impact . | . . . . Kinetic . | . . . . Secondary . | . . . . Self-Inflicted Damage 55 | . . 40 15 Shots 2 | . . 1 1 Rammed . | . . . . Targets Rammed . | . . . . Kicked . | . . . . Crushed . | . . . . Highest Temperature 201 | . 26 201 84 Average Temperature 47 | . 12 62 20 Received Heat Transfer 861 | . 18 465 378 Siege Activations . | . . . . Robots Corrupted . | . . . . Combat Hostiles . | . . . . Parts Fried . | . . . . Impact Corruptions . | . . . . Robots Melted 1 | . . 1 . Combat Hostiles 1 | . . 1 . Parts Melted 3 | . . 3 . Heat Transferred 1246 | . 25 1147 74 Parts Sabotaged . | . . . . Parts Stolen . | . . . . Parts Stripped . | . . . . Power Chain Reactions . | . . . . Missiles Intercepted . | . . . . Alert | -11 -10 -9 -9 ------- Run | Scr Mat Mat Sto Peak Influence 627 | . 155 560 627 Initial 192 | . . 65 192 Average 283 | . 89 277 368 Maximum Alert Level 2 | . . 2 2 Low Security (%) 31 | 100 100 33 5 Level 1 35 | . . 36 47 Level 2 32 | . . 30 47 Level 3 . | . . . . Level 4 . | . . . . Level 5 . | . . . . High Security . | . . . . Max Security . | . . . . Squads Dispatched 6 | . 2 2 2 Investigation 2 | . . 2 . Extermination . | . . . . Reinforcement 3 | . 2 . 1 Assault . | . . . . Garrison 1 | . . . 1 Intercept . | . . . . Searches Triggered . | . . . . Construction Impeded 1 | . . . 1 Haulers Reinforced . | . . . . Active Scanning Responses . | . . . . Cargo Convoy Interrupts . | . . . . Stealth | -11 -10 -9 -9 --------- Run | Scr Mat Mat Sto Distress Signals 5 | . 1 . 4 Communications Jammed . | . . . . Distress Signals . | . . . . Times Spotted 56 | . 6 27 23 Peak Tracking Total 8 | . 3 7 8 Tactical Retreats 4 | . . 1 3 Traps | -11 -10 -9 -9 ------- Run | Scr Mat Mat Sto Traps Triggered 2 | . . 2 . Indirectly . | . . . . Trap Hack Attempts . | . . . . Triggered . | . . . . Disarmed . | . . . . Reprogrammed 4 | . . 4 . Reused 1 | . . 1 . Traps Extracted . | . . . . Installed . | . . . . Triggered 1 | . . 1 . Machines | -11 -10 -9 -9 ---------- Run | Scr Mat Mat Sto Machines Disabled 7 | . . 5 2 Max in Single Turn 2 | . . 2 1 Machines Sabotaged . | . . . . Garrisons Compromised . | . . . . Overloaded Fab Kills . | . . . . Hacking | -11 -10 -9 -9 --------- Run | Scr Mat Mat Sto Machines Accessed 13 | . 1 7 5 Terminals 10 | . 1 5 4 Fabricators . | . . . . Repair Stations . | . . . . Recycling Units 2 | . . 1 1 Scanalyzers 1 | . . 1 . Garrison Access . | . . . . Total Hacks 47 | . 3 33 11 Successful 29 | . 1 22 6 Failed 18 | . 2 11 5 Catastrophic 4 | . . 2 2 Database Lockouts . | . . . . Manual 17 | . 3 10 4 Terminals 33 | . 3 21 9 Fabricators . | . . . . Repair Stations . | . . . . Recycling Units 4 | . . 2 2 Scanalyzers 10 | . . 10 . Garrison Access . | . . . . Terminal Hacks 8 | . . 6 2 Record 2 | . . 2 . Prototype ID Bank 1 | . . 1 . Open Door 1 | . . . 1 Alert Level 1 | . . 1 . Locate Traps 1 | . . . 1 Reprogram Traps 1 | . . 1 . Recall Investigation 1 | . . 1 . Fabricator Hacks . | . . . . Repair Station Hacks . | . . . . Recycling Unit Hacks 3 | . . 2 1 Process 1 | . . 1 . Retrieve Matter 1 | . . 1 . Retrieve Components 1 | . . . 1 Scanalyzer 10 | . . 10 . Insert Component 5 | . . 5 . Analyze 5 | . . 5 . Garrison Access Hacks . | . . . . Unauthorized Hacks 8 | . 1 4 3 Terminals 8 | . 1 4 3 Track 3 | . . 1 2 Botnet 4 | . . 3 1 Detonate 1 | . 1 . . Fabricators . | . . . . Repair Stations . | . . . . Recycling Units . | . . . . Scanalyzers . | . . . . Garrison Access . | . . . . Data Cores Recovered . | . . . . Used . | . . . . Hacking Detections 12 | . 1 6 5 Full Trace Events 1 | . 1 . . Feedback Events . | . . . . Feedback Blocked . | . . . . Robot Schematics Acquired . | . . . . Robots Built . | . . . . Authchips . | . . . . Time . | . . . . Total Robot Build Rating . | . . . . Part Schematics Acquired 5 | . . 5 . Parts Built . | . . . . Authchips . | . . . . Time . | . . . . Total Part Build Rating . | . . . . Parts Repaired . | . . . . Time . | . . . . Parts Recycled . | . . . . Recycled Matter 199 | . . 199 . Retrieved Matter 222 | . . 222 . Retrieved Components 7 | . . . 7 Parts Scanalyzed 5 | . . 5 . Part Schematics Acquired 5 | . . 5 . Parts Damaged . | . . . . Bothacking | -11 -10 -9 -9 ------------ Run | Scr Mat Mat Sto Used RIF Installer . | . . . . Robots Hacked . | . . . . Non-combat . | . . . . Combat . | . . . . Robot Hacks Applied . | . . . . Relay Couplers Released . | . . . . Fabnet Peak Effective % . | . . . . Robots Rewired . | . . . . Allies Hacked . | . . . . Hacks Repelled . | . . . . Allies | -11 -10 -9 -9 -------- Run | Scr Mat Mat Sto Total Allies . | . . . . Largest Group . | . . . . Highest-Rated Group . | . . . . Highest-Rated Ally . | . . . . Total Orders . | . . . . Ally Attacks . | . . . . Total Damage . | . . . . Kills . | . . . . Allies Corrupted . | . . . . Allies Melted . | . . . . Intel | -11 -10 -9 -9 ------- Run | Scr Mat Mat Sto Robot Analysis Total . | . . . . Derelict Logs Recovered . | . . . . Drone Launches . | . . . . Drone Recoveries . | . . . . Exploration | -11 -10 -9 -9 ------------- Run | Scr Mat Mat Sto Turns Passed 1653 | 40 127 996 490 Spaces Moved 1135 | 39 97 703 296 Core 2 | 2 . . . Treads . | . . . . Legs 309 | . . 309 . Wheels 824 | 37 97 394 296 Hover . | . . . . Flight . | . . . . Fastest Speed 50 | 50 80 80 80 Average Speed 98 | 78 80 103 94 Slowest Speed 190 | 80 80 190 100 Overloaded Moves . | . . . . Propulsion Burnouts . | . . . . Robots Hopped . | . . . . Cave-ins Triggered . | . . . . Exploration Rate (%) 31 | 3 26 48 49 Regions Visited 3 Branch Regions 1 Pre-discovered Areas . | . . . . Known Exits Taken 1 | . . 1 . Unknown Exits Taken 2 | 1 1 . . Scrap Searched . | . . . . Spaces Dug . | . . . . Terrain Destroyed 51 | . 19 14 18 Melee . | . . . . Projectile 8 | . . 6 2 AOE 43 | . 19 8 16 Terrain Rammed . | . . . . Walls Destroyed . | . . . . Machines Disabled . | . . . . Actions | -11 -10 -9 -9 --------- Run | Scr Mat Mat Sto Total 1435 | 45 127 861 402 Wait 61 | . 9 24 28 Move 1132 | 38 96 702 296 Hop . | . . . . Pick Up 18 | 1 3 11 3 Fast Attach 21 | 6 1 11 3 Attach 14 | . . 9 5 Detach 5 | . . 4 1 Swap 26 | . 5 16 5 Drop 22 | . . 19 3 Fire 136 | . 13 65 58 Melee . | . . . . Ram . | . . . . Kick . | . . . . Crush . | . . . . Escape Stasis . | . . . . Rewire . | . . . . Trap . | . . . . Miscellaneous . | . . . . Route ------- -11/Scrapyard -10/Materials -9/Materials (discovered 3 exits: *Mat / [*Min] / *Sto) -9/Storage History --------- Turn | Location | Event 16 | -11/Scrapyard | Discovered new exit (range 14) 41 | -11/Scrapyard | Entered Materials 155 | -10/Materials | Discovered new exit (range 9) 168 | -10/Materials | Entered another Materials area 168 | -9/Materials | Evolved 2 slots: Utility x2 309 | -9/Materials | Build established: Mutant 613 | -9/Materials | Discovered new exit (range 15) 775 | -9/Materials | Discovered new exit (range 16) 798 | -9/Materials | Identified exit to Materials 861 | -9/Materials | Discovered new exit (range 16) 870 | -9/Materials | Core integrity fell below 50% 925 | -9/Materials | Lost 5 parts (2n2u1w) 1155 | -9/Materials | Identified exit to Storage 1164 | -9/Materials | Entered Storage 1445 | -9/Storage | Core integrity fell below 20% 1568 | -9/Storage | Garrison activated, responded to threat 1575 | -9/Storage | Lost 4 parts (1p1n2w) 1654 | -9/Storage | Destroyed by L-31 Rogue with Katana Last Messages --------------- 01630_ Acquired Lgt. Armor Plating. 01631_ R-06 Scavenger collects Med. Storage Unit. 01631_ U-05 Engineer lays Concrete. 01631_ K-01 Serf collects debris. 01631_ Acquired 18 matter. 01631_ Hvy. Assault Rifle destroyed. 01632_ U-05 Engineer lays Concrete. 01632_ K-01 Serf collects debris. 01632_ R-06 Scavenger collects Lgt. Treads. 01633_ Acquired 3 matter. 01633_ K-01 Serf collects debris. 01633_ U-05 Engineer lays Concrete. 01633_ R-06 Scavenger inserts Heat Sink into recycling unit. 01634_ R-06 Scavenger collects Lgt. Treads. 01634_ K-01 Serf collects debris. 01634_ R-06 Scavenger inserts Lgt. Armor Plating into recycling unit. 01635_ U-05 Engineer lays Concrete. 01636_ K-01 Serf collects debris. 01637_ U-05 Engineer lays Concrete. 01654_ Hvy. Assault Rifle destroyed. Map ----- +----------------------------------------------------+ | ???## ##?????????## # """" | | ???##!!!!# ##?????????## # """" | | ???####### ############# # | | ???########+###################+##+######+#+## | | ????## ^ != | | ????## ^ = | | ????## ^ == | | ????##########+######+########### ########+# | | ????###### # ##### *# | | ????????## # ##?## # | | ????????## """ """ # " "" ##?## # | | ????????## """ """ # ""*!" ##?## # | | ????????## """ """ # """=!" ##?## # | | ????????## # "!*""" ##### #####+#### | | ????????## # " ]"" ##### | | ????????## # """" + ! | | ????????############ ##### | | ?????????######################## #####/#### | | ??????????????????## # # | | ??????????????????## """"" # # ??????"? | | ??????????????????## """"" # # ???????? | | ????????????????#### """"" # # ???????? | | ??????###???######## # # ???????? | | ??????## ##### ########+##### # ???????? | | ??????## %% # ???????? | | ??????## @l # ???????? | | ??????## b ########## | | ??????## #### ########### ########## | | ??????##+???##################### ##"""T"""# | | ???????????????##########??????## !!! | | ???????????????????????????????##% !! | | ???????????????????????????????##% !! | | ???????????????????????????????##! ! | | ???????????????????????????????## | | ???????????????????????????????## = | | ???????????????????????????????## % % | | ???????????????????????????????##% % | | ???????????????????????????????## " | | ???????????????????????????????##^ " " | | ?????????????????????????? #### | | ?????????????????????? ##?#+##### | | ?????????????????????? + ==[! | | ?????????????????????? ##### = = | | ????????????????????????#### ##########"Y"# | | ??????????????????????????## ##########"""# | | ??????????????????????????## ?????????###### | | ?????????????????????????? ?????????###### | | ?????????????????????????????????????????????? | | ?????????????????????????????????????????????? | | ?????????????????????????????????????????????? | +----------------------------------------------------+ Best States ------------- Heat Dissipation 42 Energy Generation 12 Energy Capacity 265 Matter Stores 450 Matter Capacity 450 Sight Range 18 Terrain Scan Range 14 Terrain Scan Density 10 Armor Coverage 150 Core Shielding 20 Evasion (%) 55 Item Schematics ----------------- Imp. Signal Interpreter | -9/Materials | Scanalyzed Hvy. Assault Rifle | -9/Materials | Scanalyzed Wheel | -9/Materials | Scanalyzed Grenade Launcher | -9/Materials | Scanalyzed Lgt. Ion Engine | -9/Materials | Scanalyzed Robot Schematics ------------------ None Fabricated ------------ Nothing Alien Tech Used ----------------- None Achievements -------------- None Challenges ------------ None Game ------ Seed StructuralSegregatorCutter Manual? 0 Play Time 00:25:14 Cumulative 275.2 hours Start 2022.10.22 @ 23:04:36 End 2022.10.22 @ 23:28:54 Sessions 1 Manual Loads 0 Difficulty Rogue Special Mode None Game No. 94 Rogue 75 Adventurer 19 Explorer 0 Win Type - Total 4 Types 2/0/1/1/0/0/0/0/0 Lore% 63 Gallery% 64 Achievement% 60 Wizard Run 0 Options --------- ASCII 0 Keyboard 0 Movement Mouse Keybinds 0 Fullscreen 1 Font 18/SmallcapsGlow Map View 76x50 Tactical HUD 1 Map Filters NONE Filters NONE Steam 1 RUN: 98f39781-a582-40cb-aa83-dd43510c3801